bitfinex/quotes_ETHUSD_20240715
["timestamp","ask_amount","ask_price","bid_price","bid_amount"]
[1721022068956,1.36114998,3346.1,3345.4,0.08302813]
[1721022069158,1.0349463,3346.0,3345.4,2.77327813]
[1721022069486,2.68962,3346.2,3345.4,2.77327813]
[1721022069683,1.36111081,3346.1,3345.4,2.77327813]
[1721022069863,1.03492616,3346.0,3345.4,2.77327813]
[1721022070199,1.25384719,3346.3,3345.5,2.69016]
[1721022070404,1.36103727,3346.2,3345.5,2.69016]
[1721022070699,1.03488835,3346.1,3345.6,2.69009]
[1721022070913,1.25384719,3346.4,3345.6,2.77306795]
[1721022071074,1.25384719,3346.4,3345.7,5.01735]
[1721022071275,1.36096165,3346.3,3345.9,2.6898]
[1721022071584,1.25384719,3346.6,3346.0,2.77256795]
[1721022071783,1.36079499,3346.5,3346.0,2.77256795]
[1721022072107,1.25384719,3346.6,3346.0,2.77256795]
[1721022072108,1.36079499,3346.4,3346.0,0.08286795]
[1721022072262,1.25384719,3346.6,3346.0,0.08286795]
[1721022072465,1.91189153,3346.5,3346.1,0.08279059]
[1721022072696,1.36083252,3346.4,3345.7,5.01741]
[1721022072879,0.55105901,3346.5,3345.7,5.01741]
[1721022073091,1.36080305,3346.4,3345.8,0.08287308]
[1721022073391,0.55105901,3346.5,3345.8,0.08287308]
[1721022073607,0.32603547,3346.4,3345.8,0.08287308]
[1721022073774,0.32603547,3346.4,3345.9,2.68983]
[1721022073976,1.25384719,3346.6,3345.9,2.68983]
[1721022074188,1.36080517,3346.5,3346.0,0.08281809]
[1721022074357,0.32603422,3346.4,3346.0,0.08281809]
[1721022074562,2.59475463,3346.6,3345.9,2.68983]
[1721022074818,0.32603705,3346.5,3345.9,2.68983]
[1721022074959,1.36080702,3346.5,3345.9,2.68983]
[1721022075162,0.32603705,3346.4,3345.9,2.68983]
[1721022075464,2.59475463,3346.6,3345.9,2.68983]
[1721022075807,1.36080295,3346.5,3345.9,2.68983]
[1721022075970,0.32603507,3346.4,3345.9,2.68983]
[1721022076299,2.73828833,3346.7,3346.0,2.68972]
[1721022076486,1.36076172,3346.6,3346.1,0.08279059]
[1721022076793,0.32601528,3346.5,3346.1,0.08279059]
[1721022076974,0.32601528,3346.4,3346.1,0.08279059]
[1721022077180,1.25384719,3346.7,3346.1,0.08279059]
[1721022077363,1.36075738,3346.6,3346.1,0.08279059]
[1721022077558,0.3260126,3346.5,3346.1,0.08279059]
[1721022077804,0.3260126,3346.4,3345.9,2.68983]
[1721022077988,1.25384719,3346.7,3346.2,0.0827631]
[1721022078184,1.36076069,3346.6,3346.0,2.68977]
[1721022078394,0.32601454,3346.5,3346.3,0.08273561]
[1721022078619,1.25384719,3346.7,3346.0,2.68977]
[1721022078808,1.36075854,3346.6,3346.4,0.08270812]
[1721022079011,0.32601356,3346.5,3346.4,0.08270812]
[1721022079180,0.32601356,3346.5,3346.0,2.68977]
[1721022079379,1.25384719,3346.7,3346.4,0.08270812]
[1721022079688,1.36075916,3346.6,3346.0,2.68977]
[1721022080013,0.32601422,3346.5,3346.0,2.68977]
[1721022080162,1.25384719,3346.7,3346.2,2.6896]
[1721022080368,1.25384719,3346.8,3346.2,2.6896]
[1721022080598,0.32594214,3346.7,3346.3,2.77220255]
[1721022080813,1.25576149,3346.9,3346.3,2.68952]
[1721022081006,1.36059087,3346.8,3346.4,0.08265507]
[1721022081168,0.32593203,3346.7,3346.4,0.08265507]
[1721022081699,1.25576149,3346.9,3346.4,0.08265507]
[1721022081891,1.36060972,3346.8,3346.4,0.08265507]
[1721022082215,0.32594119,3346.7,3346.4,0.08265507]
[1721022082374,0.61487663,3346.7,3346.4,0.08265507]
[1721022082570,7.59472745,3346.6,3345.8,0.31271641]
[1721022082775,1.25384719,3346.3,3345.8,0.31271641]
[1721022082976,5.24252745,3346.2,3345.9,0.07999952]
[1721022083180,1.36068026,3346.1,3345.9,0.07999952]
[1721022083406,0.32615829,3346.0,3345.9,0.07999952]
[1721022083716,1.25384719,3346.3,3345.9,0.07999952]
[1721022083873,2.18105034,3346.2,3345.9,0.07999952]
[1721022084074,1.3610736,3346.1,3345.9,0.07999952]
[1721022084298,0.32616657,3346.0,3345.9,0.07999952]
[1721022084469,0.32617252,3346.1,3345.9,0.07999952]
[1721022084820,1.36109149,3346.0,3345.9,0.07999952]
[1721022087225,0.32617252,3346.0,3345.9,0.07999952]
[1721022087526,0.32619387,3346.0,3345.9,0.07999952]
[1721022087723,1.36112978,3346.0,3345.9,0.07999952]
[1721022090079,1.36109293,3346.0,3345.9,0.07999952]
[1721022090282,1.03493591,3346.0,3345.9,0.07999952]
[1721022090580,1.3610098,3346.0,3345.9,0.07999952]
[1721022090877,1.03487145,3346.0,3345.9,0.07999952]
[1721022091417,1.25383134,3346.6,3345.9,2.76984952]
[1721022091619,1.36071736,3346.5,3346.1,2.68964]
[1721022091786,6.20298845,3346.9,3346.1,2.68964]
[1721022091989,1.36055026,3346.8,3346.2,2.76956384]
[1721022092187,1.36055026,3346.7,3346.2,2.68956]
[1721022092397,1.03463796,3346.6,3346.3,0.07997635]
[1721022092601,1.25574564,3346.9,3346.3,0.07997635]
[1721022092787,1.36053912,3346.8,3346.3,0.07997635]
[1721022092986,1.25574564,3346.9,3346.3,0.07997635]
[1721022092987,1.36053912,3346.7,3346.3,0.07997635]
[1721022093203,1.03463205,3346.6,3346.3,0.07997635]
[1721022093423,3.0,3346.8,3346.3,0.07997635]
[1721022093584,1.25574564,3346.9,3346.3,2.76950635]
[1721022093585,1.36059169,3346.7,3346.3,2.76950635]
[1721022093919,1.36058806,3346.6,3346.3,2.76950635]
[1721022094098,3.0,3346.8,3346.3,2.76950635]
[1721022094298,1.36058618,3346.7,3346.3,2.76950635]
[1721022094615,1.03465643,3346.6,3346.3,2.76950635]
[1721022094798,1.25521486,3346.9,3346.3,2.76950635]
[1721022094799,4.25521486,3346.9,3346.3,2.76950635]
[1721022095007,1.36057912,3346.8,3346.3,2.76950635]
[1721022095219,1.03465262,3346.7,3346.3,3.0891538]
[1721022095390,0.0019143,3346.9,3346.3,3.0891538]
[1721022095724,1.03464433,3346.8,3346.3,3.0891538]
[1721022096022,1.03463723,3346.7,3346.3,3.0891538]
[1721022096207,0.0019143,3346.9,3346.3,3.0891538]
[1721022096409,0.0019143,3346.9,3346.5,2.68936]
[1721022096410,0.32782246,3346.9,3346.5,2.68936]
[1721022096620,0.0019143,3346.9,3346.5,5.12306]
[1721022096931,0.0019143,3346.9,3346.6,0.07981994]
[1721022097723,0.0019143,3346.9,3346.7,2.68914]
[1721022098113,0.0019143,3346.9,3346.8,0.13938738]
[1721022098313,0.0019143,3346.9,3346.8,0.66561012]
[1721022098634,0.0019143,3346.9,3346.8,3.29499023]
[1721022098824,0.0019143,3346.9,3346.8,2.76876749]
[1721022103014,0.0019143,3346.9,3346.8,5.51764746]
[1721022103900,0.0019143,3346.9,3346.8,5.45789749]
[1721022104742,0.0019143,3346.9,3346.8,0.07963749]
[1721022105103,0.0019143,3346.9,3346.4,2.68938]
[1721022105555,0.0019143,3346.9,3346.5,0.07968298]
[1721022106827,0.0019143,3346.9,3346.5,2.76902298]
[1721022107047,0.0019143,3346.9,3346.5,0.07968298]
[1721022107346,0.0019143,3346.9,3346.4,2.68939]
[1721022107559,0.0019143,3346.9,3346.6,2.68924]
[1721022107867,0.0019143,3346.9,3346.7,0.07962801]
[1721022108738,0.0019143,3346.9,3346.4,2.68939]
[1721022109124,0.0019143,3346.9,3346.5,0.07965405]
[1721022110624,0.0019143,3346.9,3346.3,2.68948]
[1721022111035,0.0019143,3346.9,3346.4,0.07968153]
[1721022112559,0.0019143,3346.9,3346.4,2.76911153]
[1721022113464,0.0019143,3346.9,3346.5,2.68936]
[1721022113964,0.0019143,3346.9,3346.6,0.07962656]
[1721022116578,0.0019143,3346.9,3346.8,2.68913]
[1721022116791,0.0019143,3346.9,3346.8,2.76872248]
[1721022117083,0.0019143,3346.9,3346.8,3.31452673]
[1721022117643,0.0019143,3346.9,3346.8,6.06340494]
[1721022117873,0.0019143,3346.9,3346.8,6.00365673]
[1721022118275,0.0019143,3346.9,3346.8,3.31452673]
[1721022118479,0.0019143,3346.9,3346.8,0.07959248]
[1721022118781,0.0019143,3346.9,3346.7,2.68921]
[1721022119074,0.0019143,3346.9,3346.8,0.07957963]
[1721022120358,0.0019143,3346.9,3346.4,2.68943]
[1721022120563,0.0019143,3346.9,3346.5,0.07962993]
[1721022120749,0.0019143,3346.9,3346.5,2.68936]
[1721022120948,0.0019143,3346.9,3346.6,0.07960244]
[1721022121155,0.0019143,3346.9,3346.4,2.68945]
[1721022121374,0.0019143,3346.9,3346.5,0.07962993]
[1721022121577,0.0019143,3346.9,3346.3,3.00220831]
[1721022121786,0.0019143,3346.9,3346.4,2.76904741]
[1721022122788,0.0019143,3346.9,3346.5,2.68934]
[1721022123090,0.0019143,3346.9,3346.6,2.76884012]
[1721022123940,0.0019143,3346.9,3346.7,2.68921]
[1721022124173,0.0019143,3346.9,3346.8,0.07956515]
[1721022124882,0.0019143,3346.9,3346.8,2.76869515]
[1721022125079,0.0019143,3346.9,3346.8,3.32046089]
[1721022126784,0.0019143,3346.9,3346.8,6.00959089]
[1721022127561,0.0019143,3346.9,3346.8,0.07956515]
[1721022127765,0.0019143,3346.9,3346.6,2.68924]
[1721022127992,0.0019143,3346.9,3346.7,0.07955728]
[1721022128868,0.0019143,3346.9,3346.7,2.76876728]
[1721022129762,0.0019143,3346.9,3346.8,5.37826]
[1721022129982,0.0019143,3346.9,3346.8,6.00357153]
[1721022132213,2.68813,3348.1,3346.8,6.00357153]
[1721022132214,1.95185488,3347.9,3346.9,2.2795]
[1721022132391,2.19147834,3348.5,3347.7,5.37682]
[1721022132392,1.03424466,3347.8,3347.7,5.37682]
[1721022132591,0.31281617,3348.7,3347.9,2.68819]
[1721022132774,0.31281617,3348.7,3348.0,1.03888227]
[1721022132962,0.31281617,3348.7,3348.0,0.07654593]
[1721022133190,0.31281617,3348.7,3348.2,2.68796]
[1721022133401,0.31281617,3348.7,3348.3,0.07634456]
[1721022133563,0.31281617,3348.7,3348.0,2.68817]
[1721022133564,0.31281617,3348.7,3348.1,2.68805]
[1721022133894,0.31281617,3348.7,3348.2,2.76437202]
[1721022134065,1.095,3348.3,3348.2,2.76437202]
[1721022134389,2.62532263,3348.7,3348.2,2.76431202]
[1721022134556,2.625,3348.3,3348.2,2.76438202]
[1721022135381,2.625,3348.8,3348.3,2.6879]
[1721022135548,2.625,3348.8,3348.4,0.07613087]
[1721022135753,2.625,3348.8,3348.4,2.76397087]
[1721022136071,2.625,3348.8,3348.4,0.07613087]
[1721022136272,0.2625,3348.7,3348.4,0.07613087]
[1721022136573,2.625,3348.8,3348.5,0.07611144]
[1721022136784,2.625,3348.6,3348.0,2.68816]
[1721022136956,2.625,3348.2,3348.1,2.76430967]
[1721022137155,2.625,3348.2,3348.1,0.07621967]
[1721022137390,2.625,3348.2,3347.5,3.0]
[1721022137603,2.485,3348.4,3347.3,2.68866]
[1721022137604,2.625,3347.7,3347.6,0.07366226]
[1721022137901,2.485,3348.8,3347.4,3.0]
[1721022138084,2.625,3348.3,3348.1,2.68808]
[1721022138387,2.625,3348.3,3348.2,0.07349748]
[1721022139397,2.625,3348.3,3348.0,2.68816]
[1721022139697,2.625,3348.3,3348.1,0.07352494]
[1721022139914,2.625,3348.3,3348.1,2.76159494]
[1721022140074,2.625,3348.3,3348.1,0.07352494]
[1721022140278,2.8875,3348.3,3348.1,0.07352494]
[1721022140486,0.05369152,3348.2,3347.5,2.68856]
[1721022140665,2.625,3347.8,3347.5,2.68856]
[1721022141012,2.625,3347.8,3347.6,2.68845]
[1721022141778,2.625,3347.8,3347.7,2.68841]
[1721022142806,2.625,3347.8,3347.7,2.76204479]
[1721022143524,2.625,3347.8,3347.7,0.07363479]
[1721022144192,2.8875,3347.8,3346.9,3.00153336]
[1721022144373,2.625,3347.1,3347.0,0.0738271]
[1721022144712,2.625,3347.5,3347.0,0.0738271]
[1721022145206,2.625,3347.5,3347.4,2.68865]
[1721022145410,2.625,3347.5,3347.4,2.7623672]
[1721022145918,2.625,3347.5,3347.4,0.0737172]
[1721022146270,2.625,3347.5,3347.2,2.68881]
[1721022146594,2.625,3347.5,3347.3,0.07374468]
[1721022146906,2.625,3347.5,3347.2,2.68881]
[1721022147105,2.625,3347.5,3346.9,0.31254336]
[1721022147106,2.625,3347.5,3347.4,0.0737172]
[1721022147269,2.8875,3347.5,3347.3,0.07374468]
[1721022147468,2.625,3347.4,3346.9,0.31254336]
[1721022147803,2.625,3347.0,3346.9,0.31254336]
[1721022149011,2.625,3347.0,3346.9,3.00159336]
[1721022149508,2.625,3347.4,3346.9,3.00159336]
[1721022149711,2.625,3347.4,3346.9,0.31254336]
[1721022150409,2.625,3347.4,3346.9,3.00159336]
[1721022151313,2.625,3347.4,3346.9,0.31254336]
[1721022151519,2.625,3347.4,3346.9,3.00158336]
[1721022152391,2.625,3347.4,3346.9,3.00153336]
[1721022153024,2.625,3347.4,3347.3,2.68873]
[1721022153428,2.625,3347.4,3347.3,0.07397801]
[1721022153719,2.8875,3347.4,3347.0,2.68896]
[1721022153930,2.625,3347.4,3347.3,0.07397801]
[1721022154136,2.625,3347.4,3347.1,2.68889]
[1721022154296,2.625,3347.4,3347.3,0.07397801]
[1721022154505,2.625,3347.4,3347.1,2.68889]
[1721022154506,2.625,3347.4,3347.2,0.07400548]
[1721022154717,2.625,3347.4,3347.3,0.07397801]
[1721022155118,2.625,3347.4,3347.1,2.68889]
[1721022155319,2.625,3347.4,3347.3,0.07397801]
[1721022155843,2.625,3347.4,3347.1,2.68889]
[1721022156005,2.625,3347.4,3347.3,0.07397801]
[1721022156333,2.625,3347.4,3347.1,2.68889]
[1721022156334,1.095,3347.4,3347.1,2.68889]
[1721022156540,4.94724281,3347.9,3347.3,0.07397801]
[1721022156730,1.095,3347.4,3347.2,0.07400548]
[1721022156899,1.095,3347.3,3347.1,2.68889]
[1721022157995,1.095,3347.3,3346.9,3.00163325]
[1721022158197,1.095,3347.0,3346.9,0.31263325]
[1721022158421,1.095,3347.0,3346.9,3.00168325]
[1721022158622,1.095,3347.0,3346.9,5.69073325]
[1721022159144,4.94724281,3347.9,3347.3,2.68868]
[1721022159427,1.095,3347.4,3347.3,2.68868]
[1721022159833,1.095,3347.4,3347.3,5.37741]
[1721022160333,2.627,3347.8,3347.5,2.68851]
[1721022160895,2.627,3347.8,3347.6,2.68848]
[1721022161204,2.627,3347.8,3347.7,2.68841]
[1721022161411,2.627,3347.8,3347.7,2.7624507]
[1721022163539,2.627,3348.2,3347.8,2.68826]
[1721022163699,2.627,3348.2,3348.1,2.68809]
[1721022164220,2.627,3348.2,3348.1,2.7619713]
[1721022167862,2.627,3348.6,3348.5,2.68777]
[1721022168224,2.627,3348.6,3348.5,0.07376988]
[1721022168420,2.627,3348.6,3348.3,2.68791]
[1721022168632,2.627,3348.6,3348.4,0.07379733]
[1721022169482,2.627,3348.6,3348.2,2.688]
[1721022169631,2.627,3348.6,3348.5,0.07376988]
[1721022169826,2.627,3348.6,3348.2,2.688]
[1721022170056,2.627,3348.6,3348.3,0.07382479]
[1721022170369,2.3303,3348.9,3348.3,0.07382479]
[1721022170572,2.3303,3348.9,3348.6,2.68768]
[1721022170924,2.3303,3348.9,3348.7,0.07345926]
[1721022173974,2.627,3349.0,3348.8,2.68745]
[1721022174328,2.627,3349.0,3348.9,0.0733788]
[1721022175680,2.8897,3349.0,3348.4,2.68781]
[1721022175824,2.627,3349.0,3348.9,0.0733788]
[1721022176029,2.627,3349.0,3348.5,2.68776]
[1721022176286,2.627,3349.0,3348.6,0.07346115]
[1721022178930,2.3307,3348.9,3348.6,0.07346115]
[1721022179462,2.3307,3348.9,3348.7,0.07341613]
[1721022179767,3.12813915,3348.8,3348.7,0.07341613]
[1721022179933,3.12813915,3348.8,3348.1,2.68806]
[1721022180272,0.50113915,3348.8,3348.1,2.68806]
[1721022180571,3.528,3348.2,3347.9,0.31240031]
[1721022180745,1.094,3348.0,3347.9,0.31240031]
[1721022183709,1.40668232,3348.0,3347.9,0.31240031]
[1721022186084,3.71868232,3348.0,3347.9,0.31240031]
[1721022186254,4.09055055,3348.0,3347.9,0.31240031]
[1721022186455,3.71868232,3348.0,3347.9,0.31240031]
[1721022187256,7.44106828,3348.0,3346.8,2.68908]
[1721022187455,1.094,3347.0,3346.9,2.68905]
[1721022187663,1.094,3347.0,3346.9,2.7631027]
[1721022188902,1.094,3347.0,3346.9,0.0740527]
[1721022189197,1.094,3347.0,3346.2,2.4777]
[1721022189198,1.094,3347.0,3346.8,2.68912]
[1721022189368,2.312,3347.7,3347.0,2.68896]
[1721022189559,1.094,3347.1,3347.0,2.68896]
[1721022190395,2.628,3347.4,3347.0,2.68896]
[1721022190579,2.628,3347.8,3347.3,2.68873]
[1721022191280,2.628,3347.8,3347.1,2.68888]
[1721022191489,2.628,3347.4,3347.2,2.6888]
[1721022192060,2.628,3347.4,3347.0,2.68895]
[1721022192366,2.628,3347.4,3346.8,2.68912]
[1721022193060,2.628,3347.0,3346.5,6.0018789]
[1721022193260,2.628,3347.0,3346.5,3.0018789]
[1721022193996,5.1016,3347.3,3346.6,2.68925]
[1721022195670,5.1016,3347.3,3346.9,2.68904]
[1721022195915,5.61176,3347.3,3346.9,2.68904]
[1721022196066,5.1016,3347.3,3346.9,2.68904]
[1721022196263,10.04884281,3347.7,3347.1,2.68882]
[1721022196578,5.1016,3347.7,3347.1,2.68882]
[1721022197076,5.1016,3347.7,3347.2,2.6888]
[1721022198171,5.1016,3347.7,3347.3,2.68872]
[1721022198866,0.31264271,3347.6,3347.3,2.68872]
[1721022200021,0.31264271,3347.6,3346.9,2.68904]
[1721022201503,0.85406698,3347.6,3346.9,2.68904]
[1721022203096,0.85406698,3347.6,3347.0,0.07423778]
[1721022203605,2.353,3347.5,3347.0,0.07423778]
[1721022205172,2.3846,3347.2,3346.8,0.31259656]
[1721022205371,2.3846,3347.2,3346.9,0.07428605]
[1721022205572,0.50662915,3347.1,3346.9,0.07428605]
[1721022207373,2.3846,3347.2,3346.9,0.07428605]
[1721022209541,2.3478,3347.0,3346.9,0.07428605]
[1721022209682,3.38233105,3347.0,3346.9,0.07428605]
[1721022210007,3.38233105,3347.0,3346.1,2.68963]
[1721022210008,3.38233105,3347.0,3346.1,3.00232065]
[1721022210178,2.628,3346.7,3346.2,0.07444245]
[1721022210378,0.37162226,3346.6,3346.2,0.07444245]
[1721022210579,2.37979152,3346.5,3346.2,0.07444245]
[1721022211415,2.3261,3346.5,3346.2,0.07444245]
[1721022212713,2.628,3346.3,3346.2,0.07444245]
[1721022213286,2.628,3346.3,3345.7,0.31273611]
[1721022213513,2.628,3346.3,3346.2,0.07214836]
[1721022213730,3.16767931,3346.3,3345.7,0.31273611]
[1721022213896,3.16767931,3346.3,3346.2,0.07210409]
[1721022214091,0.31249872,3346.2,3345.7,0.31273611]
[1721022214302,1.096,3345.8,3345.7,0.31273611]
[1721022215738,3.3746,3345.8,3345.7,0.31273611]
[1721022215896,3.71206,3345.8,3345.7,0.31273611]
[1721022216992,2.2786,3345.8,3345.7,0.31273611]
[1721022217339,3.3746,3345.8,3345.7,0.31273611]
[1721022221440,3.3746,3345.8,3345.7,0.38266023]
[1721022224395,1.096,3345.8,3345.7,0.38266023]
[1721022225656,3.5397,3345.8,3345.7,0.38266023]
[1721022225793,4.16801015,3345.8,3345.7,0.38266023]
[1721022227004,4.16801015,3345.8,3345.7,0.31273611]
[1721022227903,4.16801015,3345.8,3345.7,0.32273611]
[1721022228438,6.91163167,3345.8,3345.7,0.32273611]
[1721022228639,6.91163167,3345.8,3345.7,0.01]
[1721022228640,6.85794015,3345.8,3345.7,0.01]
[1721022229201,12.54787015,3345.8,3345.7,0.01]
[1721022229549,12.86037091,3345.8,3345.7,0.01]
[1721022230331,2.6901,3345.6,3345.5,1.5]
[1721022230636,5.07215409,3345.6,3345.5,1.5]
[1721022234547,2.38205409,3345.6,3345.5,1.5]
[1721022234841,5.07215409,3345.6,3345.5,1.5]
[1721022235457,1.28605409,3345.6,3345.5,1.5]
[1721022235743,1.096,3345.6,3345.5,1.56560739]
[1721022239122,1.096,3345.6,3345.5,1.5]
[1721022239523,3.7861,3345.6,3345.5,1.5]
[1721022240636,1.096,3345.6,3345.5,1.5]
[1721022241915,3.0,3345.7,3345.5,1.5]
[1721022242113,1.096,3345.6,3345.5,1.5]
[1721022242335,1.096,3345.6,3345.5,1.56572423]
[1721022243216,2.80177931,3346.3,3345.5,1.56572423]
[1721022243595,1.096,3345.6,3345.5,1.5]
[1721022244060,1.096,3345.6,3345.5,1.56566849]
[1721022245223,1.096,3345.6,3345.5,6.59554849]
[1721022245421,1.096,3345.7,3345.5,6.59554849]
[1721022245632,1.096,3345.7,3345.6,2.6901]
[1721022245859,0.312518,3345.8,3345.7,2.69002]
[1721022246228,0.312518,3345.8,3345.7,5.4454889]
[1721022246429,6.04324281,3346.4,3346.2,2.68956]
[1721022246661,1.40851706,3346.4,3346.2,2.68956]
[1721022246958,1.40851706,3346.4,3346.3,0.06525353]
[1721022247543,0.31251706,3346.4,3346.3,2.75478353]
[1721022247865,0.31251706,3346.4,3346.3,5.44431353]
[1721022252687,2.4119,3347.5,3346.9,2.68904]
[1721022252982,0.31260779,3347.0,3346.9,2.68904]
[1721022253186,0.50399,3347.4,3346.9,2.68904]
[1721022253356,0.31260783,3347.0,3346.9,2.68904]
[1721022254368,0.31260783,3347.0,3346.9,5.06634]
[1721022255718,0.31260783,3347.0,3346.9,7.75539]
[1721022255877,0.31260783,3347.0,3346.9,10.44444]
[1721022256282,5.1174,3348.4,3347.8,2.68832]
[1721022256581,0.31260677,3347.9,3347.8,2.68832]
[1721022256913,0.51174,3348.3,3347.9,2.68822]
[1721022257118,2.4894,3348.4,3347.9,2.68822]
[1721022257471,0.31259818,3348.3,3347.9,2.68822]
[1721022258222,0.31259818,3348.3,3347.7,2.68839]
[1721022259916,2.278,3347.7,3346.1,2.3332]
[1721022260123,0.54429152,3347.6,3346.7,2.68916]
[1721022260269,0.54429152,3347.6,3346.9,2.68901]
[1721022260270,0.4906,3347.6,3346.9,2.68901]
[1721022260477,0.4906,3347.6,3346.7,2.68916]
[1721022260478,0.54429152,3347.6,3346.7,2.68916]
[1721022260908,0.54429152,3347.6,3346.8,2.68912]
[1721022261207,0.54429152,3347.6,3346.6,2.68928]
[1721022261208,0.54502915,3347.5,3346.6,2.68928]
[1721022261431,0.05369152,3347.4,3346.6,2.68928]
[1721022261922,0.05369152,3347.4,3346.7,2.6892]
[1721022262208,0.54502915,3347.5,3346.5,2.68937]
[1721022262209,3.23366915,3347.5,3346.5,2.68937]
[1721022262417,0.60020492,3347.4,3346.5,2.68937]
[1721022262972,0.60020492,3347.4,3346.6,0.06470245]
[1721022263524,0.60020492,3347.4,3346.6,2.75399245]
[1721022263672,0.60020492,3347.4,3346.6,0.06470245]
[1721022263879,0.16358341,3347.3,3346.7,2.68919]
[1721022264314,0.16358341,3347.3,3346.1,2.3332]
[1721022264315,2.278,3347.7,3346.8,0.06464748]
[1721022264785,2.278,3347.7,3347.0,2.68893]
[1721022265312,2.278,3347.7,3347.1,0.06456504]
[1721022265520,0.05369152,3347.6,3347.1,0.06456504]
[1721022265725,2.278,3347.7,3346.6,2.68927]
[1721022266026,2.278,3347.7,3347.2,0.06453757]
[1721022266027,0.76480315,3347.6,3347.2,0.06453757]
[1721022266184,0.76480315,3347.6,3346.7,2.68921]
[1721022266382,0.76480315,3347.6,3347.3,0.06458044]
[1721022266576,0.76480315,3347.6,3346.7,2.68921]
[1721022266783,0.76480315,3347.6,3347.4,0.06454657]
[1721022267013,4.96642,3347.7,3346.7,2.68921]
[1721022267014,0.83592232,3347.5,3346.7,2.68921]
[1721022269701,0.83592232,3347.5,3346.6,2.68929]
[1721022270198,0.83592232,3347.5,3346.4,2.68943]
[1721022270514,0.83592232,3347.5,3346.2,3.0]
[1721022270515,2.4652,3347.3,3346.2,3.0]
[1721022270728,0.59897723,3347.2,3346.0,3.0]
[1721022270924,0.59897723,3347.2,3346.3,2.68946]
[1721022271416,0.59897723,3347.2,3346.4,2.68944]
[1721022272825,0.31244981,3347.1,3346.4,2.68944]
[1721022273132,0.31244981,3347.1,3346.3,2.68952]
[1721022273331,2.4401,3346.9,3346.1,2.68964]
[1721022275126,2.4401,3346.9,3346.2,2.68961]
[1721022275320,2.4401,3346.9,3346.3,2.68953]
[1721022277627,0.31244981,3347.1,3346.3,2.68953]
[1721022277994,0.31244981,3347.1,3346.4,0.06282592]
[1721022278619,0.31244981,3347.1,3346.7,2.68914]
[1721022279134,0.31244981,3347.1,3346.8,0.06271598]
[1721022284012,0.31244981,3347.1,3346.8,2.75183598]
[1721022285854,0.31244981,3347.1,3347.0,2.68897]
[1721022286235,0.31244981,3347.1,3347.0,2.75163102]
[1721022289316,0.31244981,3347.1,3347.0,0.06266102]
[1721022289517,0.31244981,3347.1,3347.0,2.68897]
[1721022289958,0.31244981,3347.1,3347.0,2.75157825]
[1721022290659,1.34691819,3347.1,3347.0,2.75157825]
[1721022291018,0.31244981,3347.1,3347.0,2.75157825]
[1721022291853,1.34690817,3347.1,3347.0,2.75157825]
[1721022292532,0.31244981,3347.1,3347.0,2.75157825]
[1721022293458,1.34690723,3347.1,3347.0,2.75157825]
[1721022296550,0.31244981,3347.1,3347.0,2.75157825]
[1721022297823,1.34689309,3347.1,3347.0,2.75157825]
[1721022299366,0.31244981,3347.1,3347.0,2.75157825]
[1721022300357,0.31244981,3347.1,3347.0,9.22451825]
[1721022300638,0.31244981,3347.1,3347.0,9.47982683]
[1721022300964,4.94724281,3347.5,3347.4,2.68865]
[1721022301374,4.94724281,3347.5,3347.4,2.74893058]
[1721022301965,6.04224281,3347.5,3347.4,2.74893058]
[1721022302359,4.94724281,3347.5,3347.4,2.74893058]
[1721022305131,4.94724281,3347.5,3347.4,0.06028058]
[1721022305338,5.71325443,3347.5,3347.4,0.06028058]
[1721022305881,6.03891244,3347.5,3347.1,2.68889]
[1721022306045,4.94724281,3347.5,3347.4,0.0602598]
[1721022306228,4.94724281,3347.5,3347.2,2.6888]
[1721022306433,4.94724281,3347.5,3347.4,2.7489098]
[1721022306640,4.94724281,3347.5,3347.4,2.68865]
[1721022306840,0.31247334,3347.6,3347.4,2.74892738]
[1721022308381,0.31247334,3347.6,3347.4,0.06027738]
[1721022308599,0.31247334,3347.6,3347.2,2.68875]
[1721022308877,0.31247334,3347.6,3347.5,0.06024351]
[1721022309084,0.63810527,3347.6,3347.2,2.68875]
[1721022309309,0.31247334,3347.6,3347.5,0.06024351]
[1721022309447,1.03479856,3347.6,3347.1,2.68889]
[1721022309653,0.31247334,3347.6,3347.5,0.06024351]
[1721022309843,0.63810968,3347.6,3347.2,2.6888]
[1721022310054,0.31247334,3347.6,3347.5,0.06024351]
[1721022310247,0.63810771,3347.6,3347.2,2.6888]
[1721022310479,0.31247334,3347.6,3347.5,0.06024351]
[1721022310697,0.31247334,3347.6,3347.2,2.6888]
[1721022310698,0.63810869,3347.6,3347.2,2.6888]
[1721022310857,0.31247334,3347.6,3347.5,0.06024351]
[1721022311049,0.63810604,3347.6,3347.2,2.6888]
[1721022311393,0.31247334,3347.6,3347.5,0.06024351]
[1721022311586,0.63810638,3347.6,3347.2,2.6888]
[1721022311755,0.31247334,3347.6,3347.5,0.06024351]
[1721022311956,0.63810465,3347.6,3347.5,0.06024351]
[1721022312157,0.63810465,3347.6,3347.2,2.6888]
[1721022312378,0.31247334,3347.6,3347.4,2.68859]
[1721022312749,0.31247334,3347.6,3347.5,0.06019874]
[1721022312997,0.31247334,3347.6,3347.5,7.85583874]
[1721022313369,0.31247334,3347.6,3347.5,16.14222762]
[1721022313556,1.88128105,3349.3,3347.5,16.14222762]
[1721022313557,1.25422072,3349.2,3348.8,2.68751]
[1721022313888,0.32520394,3349.1,3348.9,0.05980153]
[1721022314123,0.70471099,3349.1,3348.8,2.68751]
[1721022314318,0.70471099,3349.1,3348.6,2.68764]
[1721022314481,0.70471099,3349.1,3348.9,0.05970085]
[1721022314682,0.70471099,3349.1,3348.6,2.68768]
[1721022315189,0.70471099,3349.1,3348.7,0.05975575]
[1721022315366,0.3047111,3349.0,3348.7,0.05975575]
[1721022315571,0.3047111,3349.0,3348.4,2.68781]
[1721022315788,0.35840262,3349.0,3348.5,0.05981065]
[1721022316081,0.35840262,3349.0,3348.3,2.68787]
[1721022316276,0.35840262,3349.0,3348.6,0.0597832]
[1721022316475,0.32979311,3348.9,3348.3,2.68787]
[1721022316801,0.31252852,3349.1,3348.4,2.68778]
[1721022317014,0.36622004,3349.1,3348.4,2.7476181]